Cogmind - Beta 13 X1 @@@ ROGUE MODE // 2023.06.26 @ 18:00:00 Player: biogoob Result: Destroyed by as-84254 with Assembled Blade Performance ------------- Evolutions (0) 0 Regions Visited (3) 600 Robots Destroyed (14) 70 Value Destroyed (275) 275 Prototype IDs (23) 460 Alien Tech Used (0) 0 Bonus (264) 264 TOTAL SCORE: 1669 Bonus ------- Aligned with FarCom 300 Friendly Fire -36 Cogmind --------- Core Integrity 0/250 Matter 300/300 Energy 100/100 System Corruption 1% Temperature Cool (0) Movement Walking (120) Location -10/Exiles Parts ------- > --- POWER (1) -------- (None) > --- PROPULSION (2) --- Aluminum Leg > --- UTILITY (2) ------ Medium Storage Unit > --- WEAPON (2) ------- (None) > --- INVENTORY (10) --- Light Nuclear Core Aluminum Leg Aluminum Leg Cooling System Improved Targeting Computer Medium Armor Plating Medium Armor Plating Medium Laser Small Laser Light Assault Rifle Peak State ------------ > --- POWER ------------ Ion Engine > --- PROPULSION ------- Aluminum Leg Aluminum Leg > --- UTILITY ---------- Medium Storage Unit Improved Targeting Computer > --- WEAPON ----------- Particle Gun Light Assault Rifle > --- INVENTORY -------- Light Nuclear Core Aluminum Leg Aluminum Leg Cooling System Improved Targeting Computer Medium Armor Plating Medium Armor Plating Medium Laser Small Laser Light Assault Rifle [Rating: 10] Favorites ----------- Power Ion Engine Engine Ion Engine Propulsion Aluminum Leg Leg Aluminum Leg Utility Improved Targeting Computer Storage Medium Storage Unit Processor Improved Targeting Computer Weapon Particle Gun Energy Gun Particle Gun Ballistic Gun Assault Rifle Build | -11 -10 -10 -10 ------- Run | Jun Mat Min Exi Slots Evolved . | . . . . Power . | . . . . Propulsion . | . . . . Utility . | . . . . Weapon . | . . . . Parts Attached 9 | . 6 3 . Power 1 | . 1 . . Engine 1 | . 1 . . Core . | . . . . Reactor . | . . . . Propulsion 2 | . . 2 . Treads . | . . . . Leg 2 | . . 2 . Wheel . | . . . . Hover . | . . . . Flight . | . . . . Utility 2 | . 2 . . Device . | . . . . Storage 1 | . 1 . . Processor 1 | . 1 . . Hackware . | . . . . Protection . | . . . . Artifact . | . . . . Weapon 4 | . 3 1 . Energy Gun 2 | . 2 . . Energy Cannon . | . . . . Ballistic Gun 2 | . 1 1 . Ballistic Cannon . | . . . . Launcher . | . . . . Special Weapon . | . . . . Impact Weapon . | . . . . Slashing Weapon . | . . . . Piercing Weapon . | . . . . Special Melee Weapon . | . . . . Unidentified Prototypes . | . . . . Parts Lost 7 | . . 2 5 Power 1 | . . . 1 Propulsion 2 | . . 1 1 Utility 1 | . . . 1 Weapon 3 | . . 1 2 Highest Loss Streak 5 | . . 2 5 To Critical Strikes . | . . . . Average Slot Usage (%) 99 | . 99 100 96 Engine 13 | . 14 14 12 Leg 28 | . 28 28 28 Storage 14 | . 14 14 14 Processor 13 | . 13 14 14 Energy Gun 13 | . 14 14 12 Ballistic Gun 13 | . 14 14 12 Naked Turns . | . . . . Heaviest Build 20 | 11 20 20 20 Greatest Support 20 | 20 20 20 20 Greatest Overweight (x) . | . . . . Average Overweight (x) . | . . . . Largest Inventory Capacity 10 | . 10 10 10 Average Capacity 9 | . 9 10 10 Most Carried 10 | . 10 10 10 Average Carried 9 | . 9 9 10 Final Capacity 10 | 8 10 10 10 Final Carried 10 | 6 10 10 10 Class Distribution -------------------- 100% | Mutant Dominant Class ---------------- Mutant | -10/Materials Mutant | -10/Mines Mutant | -10/Exiles Resources | -11 -10 -10 -10 ----------- Run | Jun Mat Min Exi Matter Collected 354 | 183 92 78 1 Remotely . | . . . . Salvage Created 462 | . 275 187 . Parts 30 | . 18 12 . Haulers Intercepted . | . . . . Recyclers Shooed 1 | . 1 . . Parts Field Recycled . | . . . . Retrieved Matter . | . . . . Parts Self-Destructed . | . . . . Prevented . | . . . . Kills | -11 -10 -10 -10 ------- Run | Jun Mat Min Exi Combat Hostiles Destroyed 10 | . 6 4 . Guns 10 | . 6 4 . Classes Destroyed 5 | . 4 1 . Worker 1 | . . 1 . Recycler 2 | . 1 1 . Watcher 1 | . 1 . . Swarmer 5 | . 3 2 . Grunt 5 | . 3 2 . Best Kill Streak 3 | . 3 2 . Combat Bots Only 3 | . 3 2 . Max Kills in Single Turn 1 | . 1 1 . Gunslinging . | . . . . Exploded . | . . . . Melee . | . . . . Uniques/NPCs Destroyed . | . . . . Combat | -11 -10 -10 -10 -------- Run | Jun Mat Min Exi Damage Taken 996 | . 213 402 381 Core 274 | . 46 82 146 Absorbed by Shields . | . . . . Core Remaining (%) 100 | 100 . . . Volleys Fired 43 | . 25 17 1 Largest 2 | . 2 2 2 Hottest 85 | . 85 85 85 Shots Fired 86 | . 50 34 2 Gun 86 | . 50 34 2 Cannon . | . . . . Launcher . | . . . . Special . | . . . . Kinetic 43 | . 25 17 1 Thermal 43 | . 25 17 1 Explosive . | . . . . Electromagnetic . | . . . . Robot Hit Streak 8 | . 6 8 1 Robot Miss Streak 4 | . 2 4 1 Penetration Max . | . . . . Secondary Targets 1 | . . 1 . Max Gunslinging Chain 1 | . . 1 . Shots Hit Robots 56 | . 32 23 1 Core Hits 29 | . 17 11 1 Critical Kills . | . . . . Critical Parts Destroyed . | . . . . Critical Strikes . | . . . . Melee Attacks . | . . . . Impact . | . . . . Slashing . | . . . . Piercing . | . . . . Sneak Attacks . | . . . . Combat Hostiles . | . . . . Follow-up Attacks . | . . . . Damage Inflicted 644 | . 323 309 12 Guns 644 | . 323 309 12 Cannons . | . . . . Explosions . | . . . . Melee . | . . . . Ramming . | . . . . Kinetic 323 | . 158 153 12 Thermal 321 | . 165 156 . Explosive . | . . . . Electromagnetic . | . . . . Impact . | . . . . Slashing . | . . . . Piercing . | . . . . Highest Corruption 1 | . 1 1 1 Average Corruption 1 | . 1 1 1 Corruption Purged . | . . . . Corruption Blocked . | . . . . Effects 3 | . . 2 1 Message Errors 2 | . . 1 1 Matter Fused 1 | . . 1 . Overload Shots . | . . . . Overflow Damage . | . . . . Projectiles . | . . . . Explosions . | . . . . Melee . | . . . . Knockbacks . | . . . . Impact . | . . . . Kinetic . | . . . . Secondary . | . . . . Self-Inflicted Damage . | . . . . Shots . | . . . . Rammed . | . . . . Targets Rammed . | . . . . Kicked . | . . . . Crushed . | . . . . Highest Temperature 234 | . 160 234 24 Average Temperature 55 | . 47 67 12 Received Heat Transfer 162 | . 87 75 . Effects 3 | . . 3 . Interference 3 | . . 3 . Siege Activations . | . . . . Robots Corrupted . | . . . . Combat Hostiles . | . . . . Parts Fried . | . . . . Impact Corruptions . | . . . . Robots Melted . | . . . . Combat Hostiles . | . . . . Parts Melted 1 | . . 1 . Heat Transferred 780 | . 410 370 . Parts Sabotaged . | . . . . Parts Stolen . | . . . . Parts Stripped . | . . . . Power Chain Reactions . | . . . . Missiles Intercepted . | . . . . Alert | -11 -10 -10 -10 ------- Run | Jun Mat Min Exi Peak Influence 169 | . 169 95 . Initial 65 | . . 65 . Average 50 | . 60 43 . Maximum Alert Level . | . . . . Low Security (%) 100 | . 100 100 . Level 1 . | . . . . Level 2 . | . . . . Level 3 . | . . . . Level 4 . | . . . . Level 5 . | . . . . High Security . | . . . . Max Security . | . . . . Squads Dispatched 1 | . 1 . . Investigation . | . . . . Extermination . | . . . . Reinforcement 1 | . 1 . . Assault . | . . . . Garrison . | . . . . Intercept . | . . . . Searches Triggered . | . . . . Construction Impeded . | . . . . Haulers Reinforced . | . . . . Active Scanning Responses . | . . . . Cargo Convoy Interrupts . | . . . . Stealth | -11 -10 -10 -10 --------- Run | Jun Mat Min Exi Distress Signals 2 | . 2 . . Communications Jammed . | . . . . Distress Signals . | . . . . Times Spotted 39 | . 14 7 18 Peak Tracking Total 12 | . 5 2 12 Tactical Retreats 4 | . 1 1 2 Traps | -11 -10 -10 -10 ------- Run | Jun Mat Min Exi Traps Triggered 1 | . 1 . . Indirectly . | . . . . Trap Hack Attempts . | . . . . Triggered . | . . . . Disarmed . | . . . . Reprogrammed . | . . . . Reused . | . . . . Traps Extracted . | . . . . Installed . | . . . . Triggered . | . . . . Machines | -11 -10 -10 -10 ---------- Run | Jun Mat Min Exi Machines Disabled 1 | . . . 1 Max in Single Turn 1 | . . . 1 Machines Repaired . | . . . . Machines Sabotaged . | . . . . Overloaded Fab Kills . | . . . . Hacking | -11 -10 -10 -10 --------- Run | Jun Mat Min Exi Machines Accessed 7 | . 5 . 2 Terminals 4 | . 4 . . Fabricators . | . . . . Repair Stations . | . . . . Recycling Units 1 | . 1 . . Scanalyzers . | . . . . Garrison Access . | . . . . Total Hacks 28 | . 18 . 10 Successful 23 | . 13 . 10 Failed 5 | . 5 . . Catastrophic 2 | . 2 . . Database Lockouts . | . . . . Manual 8 | . 7 . 1 Terminals 17 | . 17 . . Fabricators . | . . . . Repair Stations . | . . . . Recycling Units 1 | . 1 . . Scanalyzers . | . . . . Garrison Access . | . . . . Terminal Hacks 20 | . 10 . 10 Record 9 | . . . 9 Robot Analysis 3 | . 3 . . Unreport Threat 1 | . 1 . . Locate Traps 1 | . 1 . . Dispatch Records 1 | . 1 . . Hauler Manifests 2 | . 2 . . Registered Components 1 | . 1 . . Zone Layout 1 | . 1 . . Derelict Proto ID Bank 1 | . . . 1 Fabricator Hacks . | . . . . Repair Station Hacks . | . . . . Recycling Unit Hacks 1 | . 1 . . Report Inventory 1 | . 1 . . Scanalyzer . | . . . . Garrison Access Hacks . | . . . . Unauthorized Hacks 2 | . 2 . . Terminals 2 | . 2 . . Botnet 2 | . 2 . . Fabricators . | . . . . Repair Stations . | . . . . Recycling Units . | . . . . Scanalyzers . | . . . . Garrison Access . | . . . . Data Cores Recovered . | . . . . Used . | . . . . Hacking Detections 4 | . 4 . . Full Trace Events . | . . . . Feedback Events . | . . . . Feedback Blocked . | . . . . Robot Schematics Acquired . | . . . . Robots Built . | . . . . Authchips . | . . . . Time . | . . . . Total Robot Build Rating . | . . . . Part Schematics Acquired . | . . . . Parts Built . | . . . . Authchips . | . . . . Time . | . . . . Total Part Build Rating . | . . . . Parts Repaired . | . . . . Time . | . . . . Parts Recycled . | . . . . Recycled Matter . | . . . . Retrieved Matter . | . . . . Retrieved Components . | . . . . Parts Scanalyzed . | . . . . Part Schematics Acquired . | . . . . Parts Damaged . | . . . . Bothacking | -11 -10 -10 -10 ------------ Run | Jun Mat Min Exi Used RIF Installer . | . . . . Robots Hacked . | . . . . Non-combat . | . . . . Combat . | . . . . Robot Hacks Applied . | . . . . Relay Couplers Released . | . . . . Fabnet Peak Effective % . | . . . . Robots Rewired . | . . . . Allies Hacked . | . . . . Hacks Repelled . | . . . . Allies | -11 -10 -10 -10 -------- Run | Jun Mat Min Exi Total Allies . | . . . . Largest Group . | . . . . Highest-Rated Group . | . . . . Highest-Rated Ally . | . . . . Total Orders . | . . . . Ally Attacks . | . . . . Total Damage . | . . . . Kills . | . . . . Allies Corrupted . | . . . . Allies Melted . | . . . . Intel | -11 -10 -10 -10 ------- Run | Jun Mat Min Exi Robot Analysis Total 3 | . 3 . . Derelict Logs Recovered 3 | . . 3 . Drone Launches . | . . . . Drone Recoveries . | . . . . Exploration | -11 -10 -10 -10 ------------- Run | Jun Mat Min Exi Turns Passed 1894 | . 703 927 264 Spaces Moved 1409 | 1 498 693 217 Core . | . . . . Treads . | . . . . Legs 1409 | 1 498 693 217 Wheels . | . . . . Hover . | . . . . Flight . | . . . . Fastest Speed 120 | 120 120 120 120 Average Speed 120 | 120 120 120 120 Slowest Speed 120 | 120 120 120 120 Overloaded Moves . | . . . . Propulsion Burnouts . | . . . . Robots Hopped . | . . . . Cave-ins Triggered . | . . . . Exploration Rate (%) 56 | 2 79 92 54 Regions Visited 3 Branch Regions 2 Pre-discovered Areas 3 | . . 3 . Known Exits Taken . | . . . . Unknown Exits Taken 3 | 1 1 1 . Scrap Searched . | . . . . Spaces Dug . | . . . . Terrain Destroyed . | . . . . Melee . | . . . . Projectile . | . . . . AOE . | . . . . Terrain Rammed . | . . . . Walls Destroyed . | . . . . Machines Disabled . | . . . . Actions | -11 -10 -10 -10 --------- Run | Jun Mat Min Exi Total 1539 | . 567 754 218 Wait 55 | . 14 41 . Move 1406 | . 497 692 217 Hop . | . . . . Pick Up 13 | . 12 1 . Fast Attach 1 | . 1 . . Attach 2 | . . 2 . Detach . | . . . . Swap 6 | . 5 1 . Drop 13 | . 13 . . Fire 43 | . 25 17 1 Melee . | . . . . Ram . | . . . . Kick . | . . . . Crush . | . . . . Escape Stasis . | . . . . Rewire . | . . . . Trap . | . . . . Miscellaneous . | . . . . Route ------- -11/Junkyard -10/Materials (discovered 4 exits: [*Mat x3] / [*Min]) -10/Mines (discovered 3 exits: [*Mat] / *Exi / [*Sub]) -10/Exiles History --------- Turn | Location | Event 1 | -11/Junkyard | Discovered new exit (range 0) 1 | -11/Junkyard | Entered Materials 218 | -10/Materials | Discovered new exit (range 4) 338 | -10/Materials | Build established: Mutant 389 | -10/Materials | Discovered new exit (range 9) 619 | -10/Materials | Discovered new exit (range 9) 625 | -10/Materials | Discovered new exit (range 13) 704 | -10/Materials | Entered Mines 746 | -10/Mines | Found a hidden stash of uninstalled traps 757 | -10/Mines | Deemed a non-threat by the Exiles lab entrance 757 | -10/Mines | Discovered new exit (range 5) 845 | -10/Mines | Learned location of Recycling (-8) 1100 | -10/Mines | Discovered new exit (range 9) 1118 | -10/Mines | Learned location of Zion (-6) 1125 | -10/Mines | Discovered new exit (range 5) 1273 | -10/Mines | Learned location of Mines (-9) 1317 | -10/Mines | Core integrity fell below 50% 1631 | -10/Mines | Entered Exiles 1661 | -10/Exiles | Met 8R-AWN 1702 | -10/Exiles | Met EX-HEX 1741 | -10/Exiles | Met EX-BIN 1761 | -10/Exiles | Aligned with FarCom system 1762 | -10/Exiles | Given EX-Vault access code 1795 | -10/Exiles | Opened EX-Vault 1825 | -10/Exiles | Warned to stay clear of 0b10 Research branches 1855 | -10/Exiles | Met EX-DEC 1874 | -10/Exiles | Attacked by the Exiles 1882 | -10/Exiles | Core integrity fell below 20% 1895 | -10/Exiles | Destroyed by as-84254 with Assembled Blade Last Messages --------------- EX-BIN: And don't even think about spreading that code around. We're gonna change it right after you leave. Most certainly not to something like 1234 which I did last time as a little joke and some thief managed to sneak in here and steal a few of HEX's prototypes. EX-DEC: Ah I see we have a visitor. One wrong move in here and I'll invert your atomic chain! 01857_ EX-DEC: "Oops, I hope HEX didn't hear that..." 01873_ Machine disabled. 01874_ EXILES: Hostile robot within lab perimeter. Defensive protocols time, folks! 01876_ EX-DEC: "Let's see what this bad boy can do..." 01876_ EX-DEC deploys DAS Turret. 01876_ Ion Engine destroyed. 01876_ Particle Gun destroyed. 01876_ Assault Rifle destroyed. 01876_ Knocked back. 01880_ Acquired 1 matter. 01889_ EX-BIN: "I just want to science!" 01894_ Aluminum Leg destroyed. 01894_ Imp. Targeting Computer destroyed. Map ----- +----------------------------------------------------+ | ???????????????????????????????????????????# # | | ???????????????????????????????????????????# # | | ??????????????????????????????????????????## # | | ??????????????????????????????????????????#" | | ??????????????????????????????????????????#" | | ??????????????????????????????????????????#" | | ??????????????????????????????????????????#" | | ??????????????????????????????????????????#" | | ??????????????????????????????????????????#" | | ??????????????????????????????????????????## | | ?????????"" ???????????????????????????????# | | ????????? ????????????????? ???????????#" | | ???????? ???????????????" ??????????#" | | ???????? "?????????????? ""?????????#" | | ?????????? ##????????????" "?????????##" # | | ?????????? #???????????# #????????##"" # | | ??????????#"" ######???### ###?######"" # | | ???????????#" """#####X# #"###""""""" # | | ???????????#" """""" " "" | | ?????????????# "" """ " | | ??????????????# " " | | ????????????????# | | ????????????????### | | ??????????????????## | | ???????????????????## %aa | | ????????????????????##" @aa | | ?????????????????????#"""% """""" | | ????????????????????##" ######""" | | ????????????????????#"" a ""##????##### | | ???????????????????##""" """##?????????# | | ???????????????????#"" a"""##??????????? | | ???????????????????#"" % "#???????????? | | ???????????????????#"" a##???????????? | | ???????????????????#""" #??????????? | | ???????????????????#"" t ??????????? | | ???????????????????##"" ?????????? | | ????????????????????#"""" ????????? | | ????????????????????## ????????? | | ?????????????????????#" ?????????? | | ?????????????????????#"""" ??????????? | | ?????????????????????#"" ????????????? | | ??????????????????????" ?????????????? | | ????????????????????????" ?????????????? | | ?????????????????????????? ??????????????? | | ?????????????????????????? ????????????????? | | ??????????????????????????? ??????????????????? | | ?????????????????????????????????????????????????? | | ?????????????????????????????????????????????????? | | ?????????????????????????????????????????????????? | | ?????????????????????????????????????????????????? | +----------------------------------------------------+ Best States ------------- Heat Dissipation 25 Energy Generation 10 Energy Capacity 250 Matter Stores 300 Matter Capacity 300 Sight Range 16 Terrain Scan Density 10 Evasion (%) 55 Targeting Accuracy 6 Item Schematics ----------------- None Robot Schematics ------------------ None Fabricated ------------ Nothing Alien Tech Used ----------------- None Achievements -------------- None Challenges ------------ None Game ------ Seed BottomlessLightEngine Manual? 0 Play Time 00:15:48 Cumulative 108.0 hours Start 2023.06.26 @ 17:41:02 End 2023.06.26 @ 18:00:00 Sessions 5 Manual Loads 0 Difficulty Rogue Special Mode None Game No. 127 Rogue 105 Adventurer 18 Explorer 4 Win Type - Total 1 Types 0/0/1/0/0/0/0/0/0 Lore% 47 Gallery% 50 Achievement% 46 Wizard Run 0 Options --------- ASCII 1 Keyboard 1 Movement Vi Keybinds 0 Fullscreen 1 Font 18/X11 Map View 76x50 Tactical HUD 1 Map Filters SATURATION(80) Filters SATURATION(80) Steam 1 RUN: 01224d39-beda-4299-94ec-f95f2d8f4542